bitfinex/quotes_BTCUSD_20240821
["timestamp","ask_amount","ask_price","bid_price","bid_amount"]
[1724249034451,0.500383,59954.0,59953.0,0.001]
[1724249034662,0.500383,59954.0,59953.0,0.002]
[1724249034781,0.166811,59948.0,59947.0,0.0009053]
[1724249034984,0.500433,59948.0,59947.0,0.0009053]
[1724249035187,0.834055,59948.0,59947.0,0.0009053]
[1724249035597,0.500433,59948.0,59947.0,0.0009053]
[1724249035805,0.33359,59954.0,59950.0,0.002]
[1724249036017,0.500433,59948.0,59947.0,0.0009053]
[1724249036440,0.500433,59948.0,59947.0,0.0029053]
[1724249036643,0.03883,59962.0,59955.0,0.001]
[1724249036644,0.333567,59958.0,59955.0,0.001]
[1724249036849,0.333556,59960.0,59955.0,0.002]
[1724249037058,0.500333,59960.0,59959.0,0.001]
[1724249037264,0.833889,59960.0,59959.0,0.001]
[1724249037477,0.33354,59963.0,59962.0,0.001]
[1724249037686,0.000823,59977.0,59962.0,0.001]
[1724249037687,0.500257,59969.0,59968.0,0.002]
[1724249038110,0.166748,59971.0,59968.0,0.002]
[1724249038322,0.000823,59977.0,59964.0,0.002]
[1724249038520,0.166757,59968.0,59964.0,0.16600298]
[1724249038772,0.166757,59968.0,59967.0,0.002]
[1724249038958,0.333497,59971.0,59964.0,0.16600298]
[1724249039156,0.166758,59968.0,59965.0,0.002]
[1724249039428,0.166758,59967.0,59965.0,0.002]
[1724249039648,0.000823,59977.0,59972.0,0.001]
[1724249039857,0.83350633,59973.0,59972.0,0.001]
[1724249040096,0.000823,59977.0,59965.0,0.002]
[1724249040097,0.166759,59967.0,59965.0,0.002]
[1724249040307,0.333491,59972.0,59968.0,0.002]
[1724249040529,0.000823,59977.0,59970.0,0.001]
[1724249040726,0.000823,59977.0,59976.0,0.533666]
[1724249040949,0.000823,59977.0,59976.0,0.86440198]
[1724249041669,0.000823,59991.0,59990.0,0.502082]
[1724249041902,0.000823,59991.0,59990.0,1.22498498]
[1724249042110,0.000823,59991.0,59990.0,1.55837298]
[1724249043386,0.000823,59991.0,59990.0,1.22398498]
[1724249043608,0.000823,59991.0,59990.0,0.72390298]
[1724249043822,0.000823,59991.0,59990.0,1.55837298]
[1724249044053,0.000823,60009.0,60007.0,0.562747]
[1724249044299,0.000823,60009.0,60007.0,0.72674998]
[1724249044511,0.000823,60009.0,60007.0,1.72763198]
[1724249044696,0.000823,60009.0,60007.0,1.72863198]
[1724249044940,0.00200001,60030.0,60029.0,0.336172]
[1724249045162,0.19553,60051.0,60029.0,1.92870498]
[1724249045163,0.49249154,60039.0,60029.0,1.92870498]
[1724249045377,0.49249154,60039.0,60026.0,0.201]
[1724249045378,0.0002,60039.0,60036.0,1.57613498]
[1724249045587,0.0002,60039.0,60036.0,1.90926798]
[1724249046037,0.00823,60051.0,60044.0,1.198811]
[1724249046265,0.00823,60051.0,60046.0,0.001]
[1724249046525,0.49229154,60065.0,60055.0,0.002]
[1724249046741,0.65877854,60065.0,60058.0,0.002]
[1724249047000,0.166482,60067.0,60058.0,0.16600298]
[1724249047213,0.00823,60069.0,60058.0,0.54333253]
[1724249047414,0.00823,60069.0,60058.0,0.54000298]
[1724249047626,0.00823,60069.0,60058.0,1.22411898]
[1724249048058,0.166499,60061.0,60058.0,0.72360298]
[1724249048273,0.00823,60069.0,60058.0,0.72360298]
[1724249049177,0.00823,60069.0,60058.0,0.88910798]
[1724249049380,0.00823,60069.0,60058.0,1.60539117]
[1724249049589,0.00823,60069.0,60058.0,1.93840217]
[1724249050015,0.00823,60069.0,60062.0,0.002]
[1724249050231,0.00823,60069.0,60062.0,0.33249698]
[1724249050442,0.00823,60069.0,60062.0,0.75725817]
[1724249050658,0.00823,60069.0,60062.0,0.71332595]
[1724249050864,0.00823,60069.0,60062.0,1.04298598]
[1724249051082,0.00823,60069.0,60062.0,0.54250298]
[1724249051296,0.8443969,60063.0,60062.0,0.16400298]
[1724249051533,0.5114139,60063.0,60055.0,0.3724]
[1724249051733,0.5114139,60063.0,60046.0,0.002]
[1724249051734,0.166529,60050.0,60046.0,0.002]
[1724249051943,0.33305,60052.0,60047.0,0.16400298]
[1724249052155,0.499599,60048.0,60047.0,0.16400298]
[1724249052411,0.1815,60054.0,60032.0,0.3724]
[1724249052618,0.166563,60038.0,60033.0,0.16400298]
[1724249052880,0.738668,60048.0,60034.0,0.49229154]
[1724249053081,0.1815,60054.0,60035.0,0.16400298]
[1724249053298,0.166561,60038.0,60035.0,0.16400298]
[1724249053507,0.333133,60036.0,60029.0,0.002]
[1724249053733,0.333133,60036.0,60028.0,0.3724]
[1724249053734,0.1815,60054.0,60034.0,0.002]
[1724249053935,0.166569,60035.0,60034.0,0.16400298]
[1724249054183,0.333194,60025.0,60017.0,0.3724]
[1724249054398,0.166576,60033.0,60026.0,0.002]
[1724249054603,0.12383,60053.0,60033.0,0.002]
[1724249054604,0.166562,60038.0,60033.0,0.002]
[1724249054820,0.166553,60041.0,60034.0,0.16600298]
[1724249055023,0.499708,60035.0,60034.0,0.16400298]
[1724249055257,0.4056,60050.0,60018.0,0.3699]
[1724249055508,0.89702698,60056.0,59998.0,0.2]
[1724249055509,0.166612,60020.0,60019.0,0.16400298]
[1724249055722,0.91449154,60045.0,60010.0,0.3967]
[1724249055723,0.333217,60021.0,60013.0,0.16400298]
[1724249055945,0.1827,60025.0,60013.0,0.16400298]
[1724249055946,0.166627,60014.0,60013.0,0.16400298]
[1724249056165,0.1827,60025.0,60006.0,0.002]
[1724249056166,0.166648,60007.0,60006.0,0.002]
[1724249056380,0.33326,60014.0,60006.0,0.16600298]
[1724249056575,0.1827,60025.0,60020.0,0.002]
[1724249056805,0.333099,60043.0,60023.0,0.002]
[1724249056806,0.49229154,60024.0,60023.0,0.002]
[1724249057023,0.1879,60034.0,60016.0,0.4033]
[1724249057229,0.1879,60034.0,60017.0,0.16400298]
[1724249057456,0.1879,60034.0,60017.0,0.16600298]
[1724249057657,0.1879,60034.0,60030.0,0.002]
[1724249057865,0.354472,60034.0,60030.0,0.002]
[1724249058080,0.333099,60043.0,60033.0,0.002]
[1724249058294,0.001,60056.0,60031.0,0.16400298]
[1724249058295,0.166561,60038.0,60031.0,0.16400298]
[1724249058499,0.5819,60049.0,60031.0,0.16400298]
[1724249058500,0.333135,60036.0,60031.0,0.16400298]
[1724249058712,0.333162,60031.0,60021.0,0.3947]
[1724249058938,0.16659,60028.0,60022.0,0.16400298]
[1724249059182,0.16659,60028.0,60010.0,0.66655]
[1724249059183,0.3924,60032.0,60018.0,0.002]
[1724249059465,0.3924,60032.0,60019.0,0.16400298]
[1724249059466,0.166606,60022.0,60019.0,0.16400298]
[1724249059919,0.515264,60031.0,60024.0,0.001]
[1724249060172,0.333128,60037.0,60025.0,0.16600298]
[1724249060413,0.166572,60034.0,60033.0,0.001]
[1724249060650,0.1936,60038.0,60036.0,0.001]
[1724249060856,0.333095,60043.0,60036.0,0.002]
[1724249061073,0.166552,60042.0,60037.0,0.002]
[1724249061294,0.166552,60042.0,60033.0,0.16400298]
[1724249061295,0.166552,60042.0,60041.0,0.001]
[1724249061514,0.166545,60044.0,60043.0,0.001]
[1724249061727,0.1924,60048.0,60031.0,0.4086]
[1724249061728,0.166538,60047.0,60041.0,0.002]
[1724249061958,0.16653401,60048.0,60040.0,0.16400298]
[1724249062180,0.333107,60041.0,60031.0,0.4086]
[1724249062398,0.16653401,60048.0,60022.0,0.002]
[1724249062399,0.089789,60047.0,60022.0,0.002]
[1724249062612,0.166596,60026.0,60022.0,0.16400298]
[1724249062822,0.333162,60031.0,60027.0,0.001]
[1724249063072,0.499807,60023.0,60022.0,0.16400298]
[1724249063333,0.67929452,60044.0,60022.0,0.16600298]
[1724249063334,0.333096,60043.0,60022.0,0.16600298]
[1724249063545,0.333096,60043.0,60007.0,0.07298098]
[1724249063546,0.33314,60035.0,60007.0,0.07298098]
[1724249063763,0.33314,60035.0,59989.0,0.003]
[1724249063764,0.75530298,60034.0,59989.0,0.003]
[1724249063969,0.75530298,60034.0,59985.0,0.03]
[1724249063970,0.166628,60014.0,60007.0,0.16400298]
[1724249064175,0.3928,60019.0,60007.0,0.16400298]
[1724249066727,0.166612,60020.0,60012.0,0.16400298]
[1724249066966,0.8129959,60025.0,60012.0,0.16400298]
[1724249066967,0.499802,60024.0,60012.0,0.16400298]
[1724249067162,0.1846,60036.0,60016.0,0.333239]
[1724249067376,0.4068,60038.0,60016.0,0.16400298]
[1724249067377,0.49229154,60028.0,60016.0,0.16400298]
[1724249067591,0.4068,60038.0,60023.0,0.166601]
[1724249067804,0.4068,60038.0,60016.0,0.16400298]
[1724249067805,0.166581,60031.0,60019.0,0.166613]
[1724249068033,0.16663,60014.0,60006.0,0.586]
[1724249068241,0.333226,60020.0,60007.0,0.16400298]
[1724249068456,0.1952,60021.0,59999.0,0.513534]
[1724249068457,0.1952,60021.0,60000.0,0.3749]
[1724249068669,0.166645,60008.0,60001.0,0.16400298]
[1724249068876,0.166647,60007.0,60001.0,0.16400298]
[1724249069089,0.166647,60007.0,59989.0,0.333389]
[1724249069090,0.3843,60018.0,59984.0,0.3749]
[1724249069311,0.500046,59995.0,59985.0,0.16400298]
[1724249069548,0.166691,59992.0,59985.0,0.16400298]
[1724249069764,0.3843,60001.0,59985.0,0.16400298]
[1724249069765,0.166692,59991.0,59985.0,0.16400298]
[1724249069974,0.166692,59991.0,59976.0,0.3697]
[1724249069975,0.166699,59989.0,59977.0,0.166729]
[1724249070188,0.1959,59994.0,59978.0,0.16400298]
[1724249070189,0.333373,59993.0,59978.0,0.16400298]
[1724249070400,0.4212,60013.0,59978.0,0.16400298]
[1724249070401,0.1959,60003.0,59978.0,0.16733691]
[1724249070607,0.550964,60001.0,59990.0,0.166694]
[1724249070866,0.87969154,60010.0,59992.0,0.3852]
[1724249071080,1.02073819,60010.0,59993.0,0.36063596]
[1724249071298,0.52844665,60010.0,59993.0,0.16400298]
[1724249071509,0.166648,60007.0,59995.0,0.166679]
[1724249071729,0.3874,60010.0,59992.0,0.3852]
[1724249071730,0.362618,60018.0,59996.0,0.16733595]
[1724249071945,0.49229154,60012.0,59996.0,0.16400298]
[1724249072195,0.166652,60005.0,59996.0,0.16400298]
[1724249072412,0.33327,60012.0,59996.0,0.16400298]
[1724249072625,0.166651,60006.0,59996.0,0.16400298]
[1724249072840,0.166631,60013.0,60002.0,0.16666]
[1724249073047,0.333239,60017.0,60003.0,0.16400298]
[1724249073261,0.196,60018.0,60003.0,0.16400298]
[1724249073262,0.166629,60014.0,60003.0,0.16400298]
[1724249073493,0.166633,60012.0,60003.0,0.16400298]
[1724249073722,0.166643,60009.0,60003.0,0.16400298]
[1724249073943,0.196,60018.0,59989.0,0.33339]
[1724249073944,0.333282,60010.0,59989.0,0.333389]
[1724249074157,0.166647,60007.0,59995.0,0.166678]
[1724249074370,0.22305298,60017.0,59995.0,0.16400298]
[1724249074619,0.22895798,60016.0,59995.0,0.16400298]
[1724249074831,0.333313,60004.0,59995.0,0.16400298]
[1724249075269,0.166667,60000.0,59992.0,0.3852]
[1724249075489,0.16667,59999.0,59993.0,0.16400298]
[1724249075702,0.16666,60003.0,59993.0,0.16400298]
[1724249075920,0.166664,60001.0,59993.0,0.16400298]
[1724249076136,0.333315,60004.0,59993.0,0.16400298]
[1724249076351,0.1175681,60015.0,59994.0,0.333366]
[1724249076566,0.064955,60016.0,60001.0,0.166662]
[1724249076567,0.41056031,60014.0,60001.0,0.166662]
[1724249076782,0.41056031,60014.0,60002.0,0.16400298]
[1724249076783,0.333258,60014.0,60002.0,0.16400298]
[1724249076997,0.333258,60014.0,60002.0,0.16733578]
[1724249077212,0.166636,60011.0,60002.0,0.16733578]
[1724249077435,0.166633,60012.0,60002.0,0.16733578]
[1724249077648,0.333258,60014.0,60002.0,0.16733578]
[1724249077649,0.166636,60011.0,60002.0,0.16400298]
[1724249077854,0.166632,60013.0,60003.0,0.0033328]
[1724249078066,0.333263,60013.0,60004.0,0.16400298]
[1724249078278,0.333263,60013.0,60003.0,0.0033328]
[1724249078279,0.333268,60012.0,59996.0,0.166675]
[1724249078551,0.05905,60017.0,59997.0,0.33067698]
[1724249078771,0.166653,60005.0,59997.0,0.16400298]
[1724249078984,0.05905,60017.0,59988.0,0.166698]
[1724249078985,0.0499949,60004.0,59988.0,0.166698]
[1724249079196,0.18700298,60016.0,59993.0,0.16400298]
[1724249079423,0.18700298,60016.0,59993.0,0.16733626]
[1724249079424,0.333313,60004.0,59993.0,0.16733626]
[1724249079640,0.18700298,60016.0,59993.0,0.16733626]
[1724249079641,0.333245,60016.0,59993.0,0.16400298]
[1724249079844,0.333245,60016.0,59985.0,0.333414]
[1724249079845,0.3755,60011.0,59983.0,0.3862]
[1724249080084,0.3755,60011.0,59984.0,0.16733662]
[1724249080085,0.16400298,60010.0,59984.0,0.16733662]
[1724249080327,0.166678,59996.0,59984.0,0.16733662]
[1724249080532,0.22455298,60010.0,59984.0,0.16733662]
[1724249080533,0.333284,60009.0,59992.0,0.333375]
[1724249080746,0.166655,60004.0,59993.0,0.16400298]
[1724249080961,0.03755,60010.0,59994.0,0.00333311]
[1724249080962,0.207949,60009.0,59994.0,0.00333311]
[1724249081173,0.166641,60009.0,59997.0,0.500021]
[1724249081423,0.333268,60012.0,59997.0,0.500021]
[1724249081424,0.49229154,60011.0,59998.0,0.16733584]
[1724249081645,0.43455,60017.0,59998.0,0.16400298]
[1724249081859,0.43455,60017.0,59995.0,0.3862]
[1724249081860,0.16400298,60016.0,59995.0,0.3862]
[1724249082074,0.166665,60001.0,59995.0,0.55020298]
[1724249082303,0.1128791,60015.0,59995.0,0.16400298]
[1724249082525,0.166671,59999.0,59995.0,0.16400298]
[1724249083163,4e-05,60001.0,59988.0,0.0009042]
[1724249083164,0.333368,60001.0,59988.0,0.0009042]
[1724249083378,0.333368,60001.0,59988.0,0.16490718]
[1724249083379,0.333356,59996.0,59988.0,0.16490718]
[1724249083605,0.333368,59994.0,59988.0,0.0009042]
[1724249083820,0.0333368,60000.0,59988.0,0.0009042]
[1724249083821,0.166686,59993.0,59988.0,0.16490718]
[1724249084043,4e-05,60001.0,59988.0,0.0009042]
[1724249084044,0.166697,59989.0,59988.0,0.0009042]
[1724249084253,0.500091,59989.0,59988.0,0.0009042]
[1724249084472,0.833485,59989.0,59988.0,0.0009042]
[1724249084690,1.166879,59989.0,59988.0,0.0009042]
[1724249084946,1.2835655,59989.0,59988.0,0.0009042]
[1724249085176,0.833485,59989.0,59988.0,0.0009042]
[1724249085598,1.555879,59989.0,59988.0,0.0009042]
[1724249085811,1.222485,59989.0,59988.0,0.0009042]
[1724249086018,0.166697,59989.0,59988.0,0.0009042]
[1724249086280,0.833485,59989.0,59988.0,0.0009042]
[1724249086478,0.166697,59989.0,59988.0,0.0009042]
[1724249086699,0.500091,59989.0,59988.0,0.0009042]
[1724249087119,0.833485,59989.0,59988.0,0.0009042]
[1724249087327,0.500091,59989.0,59988.0,0.0009042]
[1724249087980,0.5501001,59989.0,59988.0,0.0009042]
[1724249088190,0.500091,59989.0,59988.0,0.0009042]
[1724249088609,0.166697,59989.0,59988.0,0.0009042]
[1724249088827,0.166694,59990.0,59988.0,0.0009042]
[1724249089047,0.333351,59997.0,59988.0,0.16490718]
[1724249089259,0.500091,59989.0,59988.0,0.0009042]
[1724249089701,1.549479,59989.0,59988.0,0.0009042]
[1724249090156,1.216085,59989.0,59988.0,0.0009042]
[1724249090582,0.833485,59989.0,59988.0,0.0009042]
[1724249091215,0.87140381,59989.0,59988.0,0.0009042]
[1724249091467,0.833485,59989.0,59988.0,0.0009042]
[1724249091891,0.500091,59989.0,59988.0,0.0009042]
[1724249092095,0.833485,59989.0,59988.0,0.0009042]
[1724249092794,1.166879,59989.0,59988.0,0.0009042]
[1724249093637,0.500091,59989.0,59988.0,0.0009042]
[1724249093855,0.333376,59993.0,59988.0,0.0009042]
[1724249094093,0.166697,59989.0,59988.0,0.0009042]
[1724249094327,0.500091,59989.0,59988.0,0.0009042]
[1724249094545,1.59528798,59989.0,59988.0,0.0009042]
[1724249094766,1.92868198,59989.0,59988.0,0.0009042]
[1724249094979,1.75926676,59989.0,59988.0,0.0009042]
[1724249095193,0.0911848,59996.0,59988.0,0.0009042]
[1724249095194,0.3989,59996.0,59988.0,0.0009042]
[1724249095440,0.000822,59989.0,59988.0,0.0009042]
[1724249096753,0.000822,59989.0,59988.0,0.99840718]
[1724249096957,0.000822,59989.0,59988.0,1.70060718]
[1724249097407,0.49229154,60013.0,60000.0,0.499999]
[1724249097657,0.49229154,60013.0,60000.0,1.04340198]
[1724249097864,0.1883,60018.0,60000.0,1.04340198]
[1724249097865,0.1883,60018.0,60000.0,1.37673498]
[1724249098116,0.1883,60018.0,60000.0,1.56383498]
[1724249098328,0.4068,60025.0,60000.0,1.56383498]
[1724249098536,0.1986,60024.0,60000.0,1.56383498]
[1724249099173,0.1986,60024.0,60000.0,1.89716798]
[1724249099599,0.3652,60024.0,60000.0,1.56383498]
[1724249099811,0.1986,60024.0,60000.0,1.56383498]
[1724249100022,0.1986,60024.0,60000.0,1.89716798]
[1724249100546,0.49229154,60028.0,60000.0,1.89816798]
[1724249100700,0.1861,60042.0,60031.0,0.16658]
[1724249100922,0.49229154,60044.0,60031.0,1.00023598]
[1724249101373,0.1836,60059.0,60031.0,1.66755798]
[1724249101604,0.1836,60070.0,60048.0,0.832665]
[1724249101865,0.1836,60070.0,60048.0,1.42326798]
[1724249102084,0.1836,60070.0,60048.0,1.75633398]
[1724249102298,0.1836,60070.0,60048.0,0.57233598]
[1724249102513,0.1836,60070.0,60041.0,0.3987]
[1724249102514,0.4042,60054.0,60041.0,0.3987]
[1724249102731,0.4042,60054.0,60026.0,0.09763293]
[1724249102732,0.19673,60049.0,60033.0,0.3815]
[1724249102953,0.19673,60049.0,60026.0,0.23031646]
[1724249102954,0.019673,60048.0,60026.0,0.1815]
[1724249103192,0.019673,60048.0,60020.0,0.33322]
[1724249103193,0.383,60047.0,60020.0,0.33322]
[1724249103415,0.19673,60049.0,60027.0,0.16400298]
[1724249103633,0.36073298,60049.0,60032.0,0.333151]
[1724249103844,0.19673,60049.0,60042.0,0.333099]
[1724249104056,0.00823,60049.0,60048.0,0.166533]
[1724249104274,0.00823,60049.0,60048.0,0.499599]
[1724249104512,0.00823,60049.0,60041.0,0.3761]
[1724249104735,0.00823,60049.0,60048.0,0.666132]
[1724249104917,0.00823,60049.0,60048.0,0.66360198]
[1724249105151,0.00823,60049.0,60043.0,0.33309]
[1724249105364,0.00823,60049.0,60045.0,0.16654]
[1724249105577,0.00823,60049.0,60048.0,0.166533]
[1724249105836,0.00823,60049.0,60048.0,0.99999809]
[1724249106047,0.00823,60049.0,60048.0,1.70756409]
[1724249106269,0.00823,60049.0,60048.0,1.89933398]
[1724249106493,0.00823,60049.0,60048.0,2.23139998]
[1724249106714,0.00823,60049.0,60048.0,2.33239998]
[1724249106942,0.00823,60049.0,60048.0,2.33339998]
[1724249107157,0.00823,60062.0,60061.0,1.543879]
[1724249107369,0.00823,60062.0,60061.0,1.70788198]
[1724249107587,0.00823,60062.0,60061.0,1.37488798]
[1724249107801,0.00823,60062.0,60049.0,0.0865]
[1724249107802,0.00823,60062.0,60057.0,0.166506]
[1724249108019,0.00823,60062.0,60053.0,0.3679]
[1724249108254,0.00823,60062.0,60036.0,0.3495]
[1724249108255,0.00823,60062.0,60046.0,0.700977]
[1724249108472,0.00823,60062.0,60047.0,0.33053698]
[1724249108680,0.00823,60062.0,60048.0,0.166532]
[1724249108891,0.00823,60062.0,60049.0,0.33053198]
[1724249109104,0.00823,60062.0,60049.0,0.16400298]
[1724249109315,0.00823,60062.0,60035.0,0.001]
[1724249109316,0.333018,60057.0,60032.0,0.5877457]
[1724249109542,0.166515,60055.0,60046.0,0.013]
[1724249109761,0.08757046,60056.0,60046.0,0.013]
[1724249109970,0.3791,60061.0,60036.0,0.333129]
[1724249110180,0.166512,60056.0,60037.0,0.49712698]
[1724249110404,0.333059,60050.0,60032.0,0.4062]
[1724249110626,0.16654,60046.0,60032.0,0.16400298]
[1724249110902,0.74730298,60055.0,60025.0,0.33319]
[1724249110903,0.74730298,60055.0,60033.0,0.16400298]
[1724249111121,0.5833,60055.0,60034.0,0.00333099]
[1724249111333,0.5833,60055.0,60024.0,0.3946]
[1724249111334,0.5833,60055.0,60049.0,0.013]
[1724249111547,0.166538,60047.0,60031.0,0.191566]
[1724249111753,0.166538,60047.0,60031.0,0.024987]
[1724249111754,0.4053,60046.0,60031.0,0.024987]
[1724249111966,0.4173,60046.0,60032.0,0.16500298]
[1724249112211,0.4173,60046.0,60032.0,0.16400298]
[1724249112432,0.3331,60042.0,60034.0,0.001]
[1724249112644,0.166569,60035.0,60034.0,0.001]
[1724249112865,0.1943,60041.0,60031.0,0.024987]
[1724249112866,0.333137,60036.0,60031.0,0.024987]
[1724249113086,0.333137,60036.0,60031.0,0.025987]
[1724249113087,0.499732,60032.0,60031.0,0.025987]
[1724249113309,1.93124498,60032.0,60031.0,0.025987]
[1724249113538,0.4004,60029.0,59996.0,0.726753]
[1724249113756,0.333284,60009.0,59988.0,0.3927042]
[1724249113976,0.596,60008.0,59988.0,0.3927042]
[1724249114193,0.16400298,60007.0,59988.0,0.0009042]
[1724249114405,0.500007,59999.0,59988.0,0.0009042]
[1724249114635,1.56774798,59999.0,59988.0,0.0009042]
[1724249114847,2.60316078,59999.0,59988.0,0.0009042]
[1724249115071,1.087491,59989.0,59988.0,0.0009042]
[1724249115283,1.25149398,59989.0,59988.0,0.0009042]
[1724249115501,1.58488798,59989.0,59988.0,0.0009042]
[1724249115708,1.25149398,59989.0,59988.0,0.0009042]
[1724249116196,1.58488798,59989.0,59988.0,0.0009042]
[1724249116403,1.58488798,59989.0,59964.0,0.0009042]
[1724249116404,1.081032,59972.0,59964.0,0.0009042]
[1724249116614,1.57852298,59972.0,59964.0,0.0009042]
[1724249116837,1.91201098,59972.0,59964.0,0.0009042]
[1724249117043,0.187,59972.0,59964.0,0.0009042]
[1724249117289,0.372444,59972.0,59964.0,0.0009042]
[1724249117507,0.85123498,59972.0,59964.0,0.0009042]
[1724249117720,1.93371098,59972.0,59964.0,0.0009042]
[1724249118172,0.912988,59972.0,59964.0,0.0009042]
[1724249118411,1.079732,59972.0,59964.0,0.0009042]
[1724249118857,1.079732,59972.0,59971.0,0.0011042]
[1724249119284,1.1877052,59972.0,59971.0,0.0011042]
[1724249119496,0.43344,59981.0,59971.0,0.0011042]
[1724249119497,0.166728,59978.0,59971.0,0.0011042]
[1724249119708,0.011,59972.0,59971.0,0.0011042]
[1724249120367,0.011,59972.0,59971.0,1.38427637]
[1724249120593,1e-08,59972.0,59971.0,1.71877037]
[1724249120809,1e-08,59972.0,59971.0,1.71977037]
[1724249121073,0.49229154,60000.0,59971.0,1.71977037]
[1724249121074,0.49229154,60000.0,59993.0,0.104]
[1724249121291,0.49229154,60000.0,59994.0,0.56080298]
[1724249121510,0.49229154,60015.0,59999.0,0.002]
[1724249121723,0.49229154,60015.0,60000.0,0.16400298]
[1724249121933,0.1974,60027.0,60013.0,0.166628]
[1724249122148,0.333146,60034.0,60016.0,0.333242]
[1724249122364,0.1859,60037.0,60018.0,0.333233]
[1724249122596,0.1859,60047.0,60028.0,0.333177]
[1724249122808,0.1859,60047.0,60019.0,0.00333153]
[1724249122809,0.166561,60038.0,60029.0,0.55330298]
[1724249123023,0.1859,60047.0,60029.0,0.55330298]
[1724249123024,0.333111,60040.0,60029.0,0.16400298]
[1724249123239,0.16654,60046.0,60030.0,0.16400298]
[1724249123450,0.000822,60049.0,60030.0,0.16733444]
[1724249123972,0.000822,60049.0,60042.0,0.333099]
[1724249124231,0.000822,60049.0,60044.0,0.166542]
[1724249124490,0.000822,60049.0,60045.0,0.16400298]
[1724249125225,0.000822,60049.0,60035.0,0.333138]
[1724249125450,0.000822,60049.0,60037.0,0.166562]
[1724249125663,0.333066,60048.0,60038.0,0.16400298]
[1724249125876,0.167352,60049.0,60038.0,0.16400298]
[1724249126084,0.000822,60049.0,60038.0,0.16400298]
[1724249126320,0.0167347,60048.0,60038.0,0.16400298]
[1724249126524,0.000822,60049.0,60031.0,0.3671]
[1724249126525,0.166554,60041.0,60031.0,0.3671]
[1724249126732,0.000822,60049.0,60024.0,0.333199]
[1724249126733,0.166551,60042.0,60032.0,0.16400298]
[1724249126942,0.000822,60049.0,60032.0,0.16400298]
[1724249127147,0.3664,60048.0,60032.0,0.16400298]
[1724249127676,0.499624,60045.0,60044.0,0.005]
[1724249127895,1.18550998,60045.0,60044.0,0.005]
[1724249128112,1.34412182,60045.0,60044.0,0.005]
[1724249128343,1.70020482,60045.0,60044.0,0.005]
[1724249128557,1.80020482,60045.0,60044.0,0.005]
[1724249128774,0.16659,60028.0,60018.0,0.49229154]
[1724249128993,0.333128,60037.0,60016.0,0.49229154]
[1724249128994,0.166609,60021.0,60016.0,0.49229154]
[1724249129207,0.0499757,60027.0,60004.0,0.4026]
[1724249129208,0.3866,60026.0,60004.0,0.4026]
[1724249129435,0.023,60036.0,60015.0,0.166624]
[1724249129436,0.3701,60034.0,60015.0,0.166624]
[1724249129649,0.3701,60034.0,60015.0,0.16400298]
[1724249129650,0.1,60033.0,60015.0,0.16400298]
[1724249129868,0.166607,60022.0,60015.0,0.16400298]
[1724249130096,0.166603,60023.0,60015.0,0.16400298]
[1724249130321,0.166609,60021.0,60009.0,0.16664]
[1724249130541,0.333223,60020.0,60004.0,0.569254]
[1724249130765,0.0724103,60032.0,60017.0,0.166617]
[1724249130766,0.166589,60028.0,60017.0,0.166617]
[1724249130993,0.49329154,60043.0,60016.0,0.0009042]
[1724249130994,0.1,60042.0,60016.0,0.0009042]
[1724249131221,0.166591,60027.0,60016.0,0.0009042]
[1724249131520,0.16400298,60027.0,60016.0,0.0009042]
[1724249131738,0.166601,60024.0,60017.0,0.0042946]
[1724249131963,0.4125103,60034.0,60016.0,0.0009042]
[1724249131964,0.34960298,60023.0,60016.0,0.0009042]
[1724249132176,0.166619,60017.0,60016.0,0.0009042]
[1724249132391,0.1856,60023.0,60016.0,0.0009042]
[1724249132612,0.33321,60023.0,60016.0,0.0009042]
[1724249132828,0.011,60027.0,60016.0,0.16590718]
[1724249133047,0.166595,60026.0,60016.0,0.54590718]
[1724249133256,0.166592,60027.0,60017.0,0.00472988]
[1724249133465,0.333179,60028.0,60017.0,0.00472988]
[1724249133677,0.1896,60031.0,60017.0,0.00472988]
[1724249133678,0.166616,60018.0,60017.0,0.00472988]
[1724249133899,0.166616,60018.0,60016.0,0.0009042]
[1724249133900,0.166619,60017.0,60016.0,0.0009042]
[1724249134122,0.499857,60017.0,60016.0,0.0009042]
[1724249134334,0.333201,60024.0,60016.0,0.0009042]
[1724249134555,0.001,60027.0,60016.0,0.0009042]
[1724249134556,0.833095,60017.0,60016.0,0.0009042]
[1724249134767,0.499857,60017.0,60016.0,0.0009042]
[1724249134974,0.166619,60017.0,60016.0,0.0009042]
[1724249135201,0.001,60027.0,60016.0,0.0009042]
[1724249135423,0.333205,60023.0,60016.0,0.0009042]
[1724249135630,0.166609,60021.0,60016.0,0.0009042]
[1724249135837,0.333205,60023.0,60016.0,0.0009042]
[1724249136046,0.0335205,60023.0,60016.0,0.0009042]
[1724249136253,0.499857,60017.0,60016.0,0.0009042]
[1724249136467,0.333185,60027.0,60016.0,0.0009042]
[1724249136729,0.166604,60023.0,60016.0,0.0019042]
[1724249137149,0.014,60027.0,60016.0,0.0059042]
[1724249137365,0.014,60027.0,60017.0,0.0047296]
[1724249137583,0.1,60039.0,60018.0,0.16733504]
[1724249137584,0.333142,60035.0,60018.0,0.16733504]
[1724249137807,0.166581,60031.0,60020.0,0.166609]
[1724249138035,0.3733,60041.0,60018.0,0.16733504]
[1724249138036,0.1952,60047.0,60021.0,0.16733462]
[1724249138248,0.1952,60047.0,60033.0,0.166574]
[1724249138249,0.65883454,60045.0,60033.0,0.166574]
[1724249138464,0.16655,60042.0,60034.0,0.16400298]
[1724249138680,0.16654,60046.0,60035.0,0.3975]
[1724249138890,0.16654,60046.0,60036.0,0.16400298]
[1724249139128,0.166542,60045.0,60036.0,0.16400298]
[1724249139359,0.333079,60046.0,60036.0,0.16868368]
[1724249139594,0.166549,60043.0,60036.0,0.16868368]
[1724249139817,0.1988,60055.0,60036.0,0.16868368]
[1724249139818,0.166563,60038.0,60036.0,0.0046807]
[1724249140031,0.166563,60037.0,60036.0,0.0046807]